fUSD/lending_fUSD_20240618
["ID","MTS","AMOUNT","RATE_DAILY","PERIOD"]
[329791967,1718675448253,-500.0,0.00021917,2]
[329791968,1718675448263,-500.0,0.00021917,2]
[329791969,1718675448274,-675.79,0.00021917,2]
[329791970,1718675448284,-1827.2,0.00021917,2]
[329791971,1718675448294,-8643.52,0.00021917,2]
[329791972,1718675448304,-512.47635635,0.00021917,2]
[329791973,1718675448314,-500.0,0.00021917,2]
[329791974,1718675448324,-500.0,0.00021917,2]
[329791975,1718675448333,-4573.52,0.00021917,2]
[329791976,1718675448343,-500.0,0.00021917,2]
[329791977,1718675448352,-911.81,0.00021917,2]
[329791978,1718675448368,-4468.33,0.00021917,2]
[329791979,1718675448378,-520.32734526,0.00021917,2]
[329791980,1718675448387,-748.94,0.00021917,2]
[329791981,1718675448397,-768.02,0.00021917,2]
[329791982,1718675448407,-1194.06,0.00021917,2]
[329791983,1718675448416,-507.41499879,0.00021917,2]
[329791984,1718675448426,-263.37544958,0.00021917,2]
[329791985,1718675448435,-505.27895808,0.00021917,2]
[329791986,1718675448445,-508.5756827,0.00021917,2]
[329791987,1718675448454,-500.0,0.00021917,2]
[329791988,1718675448464,-500.0,0.00021917,2]
[329791989,1718675448474,-223.98461245,0.00021917,2]
[329791990,1718675448484,-2445.02,0.00021917,2]
[329791991,1718675448495,-772.16,0.00021917,2]
[329791992,1718675448504,-516.3,0.00021917,2]
[329791993,1718675448514,-164.90410762,0.00021917,2]
[329791994,1718675448523,-500.0,0.00021917,2]
[329791995,1718675448533,-500.0,0.00021917,2]
[329791996,1718675448543,-500.0,0.00021917,2]
[329791997,1718675448552,-2354.45,0.00021917,2]
[329791998,1718675448561,-512.24982811,0.00021917,2]
[329791999,1718675448571,-7311.65,0.00021917,2]
[329792000,1718675448580,-500.0,0.00021917,2]
[329792001,1718675448589,-868.17,0.00021917,2]
[329792002,1718675448599,-3035.3,0.00021917,2]
[329792003,1718675448608,-1050.06,0.00021917,2]
[329792004,1718675448621,-500.0,0.00021917,2]
[329792005,1718675448631,-504.25815242,0.00021917,2]
[329792006,1718675448643,-4332.29,0.00021917,2]
[329792007,1718675448653,-500.0,0.00021917,2]
[329792008,1718675448662,-510.23292491,0.00021917,2]
[329792009,1718675448672,-1549.8,0.00021917,2]
[329792010,1718675448681,-1556.8,0.00021917,2]
[329792011,1718675448691,-1051.2,0.00021917,2]
[329792012,1718675448700,-500.0,0.00021917,2]
[329792013,1718675448709,-18327.46,0.00021917,2]
[329792014,1718675448719,-528.0,0.00021917,2]
[329792015,1718675448729,-500.0,0.00021917,2]
[329792016,1718675448738,-500.0,0.00021917,2]
[329792017,1718675448748,-1493.54,0.00021917,2]
[329792018,1718675448758,-500.0,0.00021917,2]
[329792019,1718675448769,-2589.65,0.00021917,2]
[329792020,1718675448778,-514.81,0.00021917,2]
[329792021,1718675448788,-500.0,0.00021917,2]
[329792022,1718675448798,-1350.9,0.00021917,2]
[329792023,1718675448808,-505.93628582,0.00021917,2]
[329792024,1718675448817,-655.3,0.00021917,2]
[329792025,1718675448827,-794.75,0.00021917,2]
[329792026,1718675448836,-501.84426238,0.00021917,2]
[329792027,1718675448847,-500.0,0.00021917,2]
[329792028,1718675448867,-3344.8,0.00021917,2]
[329792029,1718675448877,-5986.04,0.00021917,2]
[329792030,1718675448887,-204.43591273,0.00021917,2]
[329792031,1718675448898,-1140.25,0.00021917,2]
[329792032,1718675448907,-1384.85,0.00021917,2]
[329792033,1718675448916,-2545.62,0.00021917,2]
[329792034,1718675448927,-1008.46,0.00021917,2]
[329792035,1718675448938,-500.0,0.00021917,2]
[329792036,1718675448948,-500.0,0.00021917,2]
[329792037,1718675448957,-599.13,0.00021917,2]
[329792038,1718675448966,-500.0,0.00021917,2]
[329792039,1718675448975,-950.36,0.00021917,2]
[329792040,1718675448984,-500.0,0.00021917,2]
[329792041,1718675448994,-555.68,0.00021917,2]
[329792042,1718675449003,-500.0,0.00021917,2]
[329792043,1718675449014,-500.0,0.00021917,2]
[329792044,1718675449025,-500.0,0.00021917,2]
[329792045,1718675449034,-500.0,0.00021917,2]
[329792046,1718675449043,-2601.22,0.00021917,2]
[329792047,1718675449054,-1103.05,0.00021917,2]
[329792048,1718675449063,-500.0,0.00021917,2]
[329792049,1718675449073,-609.27,0.00021917,2]
[329792050,1718675449083,-500.0,0.00021917,2]
[329792051,1718675449092,-631.26585276,0.00021917,2]
[329792052,1718675449102,-668.47,0.00021917,2]
[329792053,1718675449120,-534.65,0.00021917,2]
[329792054,1718675449130,-500.0,0.00021917,2]
[329792055,1718675449141,-500.0,0.00021917,2]
[329792056,1718675449153,-8536.63,0.00021917,2]
[329792057,1718675449164,-1097.97,0.00021917,2]
[329792058,1718675449174,-504.80353657,0.00021917,2]
[329792059,1718675449183,-500.0,0.00021917,2]
[329792060,1718675449192,-1645.03,0.00021917,2]
[329792061,1718675449201,-500.0,0.00021917,2]
[329792062,1718675449210,-500.0,0.00021917,2]
[329792063,1718675449220,-500.0,0.00021917,2]
[329792064,1718675449229,-500.0,0.00021917,2]
[329792065,1718675449239,-581.12,0.00021917,2]
[329792066,1718675449248,-356.85796047,0.00021917,2]
[329792067,1718675449257,-1057.75,0.00021917,2]
[329792068,1718675449267,-500.0,0.00021917,2]
[329792069,1718675449276,-500.0,0.00021917,2]
[329792070,1718675449286,-2627.87,0.00021917,2]
[329792071,1718675449297,-563.55,0.00021917,2]
[329792072,1718675449306,-2669.41,0.00021917,2]
[329792073,1718675449316,-2737.64,0.00021917,2]
[329792074,1718675449326,-2957.59,0.00021917,2]
[329792075,1718675449335,-500.0,0.00021917,2]
[329792076,1718675449345,-500.0,0.00021917,2]
[329792077,1718675449354,-500.0,0.00021917,2]
[329792078,1718675449372,-502.02535789,0.00021917,2]
[329792079,1718675449383,-500.0,0.00021917,2]
[329792080,1718675449393,-624.93,0.00021917,2]
[329792081,1718675449403,-500.0,0.00021917,2]
[329792082,1718675449413,-1403.52,0.00021917,2]
[329792083,1718675449423,-2553.84,0.00021917,2]
[329792084,1718675449432,-953.89,0.00021917,2]
[329792085,1718675449441,-500.0,0.00021917,2]
[329792086,1718675449451,-500.0,0.00021917,2]
[329792087,1718675449460,-615.42,0.00021917,2]
[329792088,1718675449470,-500.0,0.00021917,2]
[329792089,1718675449479,-4891.13,0.00021917,2]
[329792090,1718675449488,-3427.51,0.00021917,2]
[329792091,1718675449498,-500.0,0.00021917,2]
[329792092,1718675449507,-500.0,0.00021917,2]
[329792093,1718675449517,-2245.26,0.00021917,2]
[329792094,1718675449527,-500.0,0.00021917,2]
[329792095,1718675449537,-500.0,0.00021917,2]
[329792096,1718675449546,-3341.34,0.00021917,2]
[329792097,1718675449556,-865.19,0.00021917,2]
[329792098,1718675449566,-508.58626232,0.00021917,2]
[329792099,1718675449575,-4865.58,0.00021917,2]
[329792100,1718675449584,-500.0,0.00021917,2]
[329792101,1718675449594,-993.42,0.00021917,2]
[329792102,1718675449603,-500.0,0.00021917,2]
[329792103,1718675449618,-505.40026365,0.00021917,2]
[329792104,1718675449627,-500.0,0.00021917,2]
[329792105,1718675449637,-1346.65,0.00021917,2]
[329792106,1718675449648,-9642.8,0.00021917,2]
[329792107,1718675449657,-500.0,0.00021917,2]
[329792108,1718675449667,-3579.0,0.00021917,2]
[329792109,1718675449676,-500.0,0.00021917,2]
[329792110,1718675449685,-500.55237405,0.00021917,2]
[329792111,1718675449694,-675.16,0.00021917,2]
[329792112,1718675449703,-500.0,0.00021917,2]
[329792113,1718675449712,-500.86776682,0.00021917,2]
[329792114,1718675449721,-500.0,0.00021917,2]
[329792115,1718675449731,-500.0,0.00021917,2]
[329792116,1718675449741,-500.0,0.00021917,2]
[329792117,1718675449751,-1824.37,0.00021917,2]
[329792118,1718675449760,-500.0,0.00021917,2]
[329792119,1718675449770,-500.0,0.00021917,2]
[329792120,1718675449779,-982.53,0.00021917,2]
[329792121,1718675449789,-1114.3,0.00021917,2]
[329792122,1718675449799,-641.51644272,0.00021917,2]
[329792123,1718675449809,-1230.4,0.00021917,2]
[329792124,1718675449818,-194.41017754,0.00021917,2]
[329792125,1718675449827,-4193.97,0.00021917,2]
[329792126,1718675449837,-508.75435501,0.00021917,2]
[329792127,1718675449847,-11331.57,0.00021917,2]
[329792128,1718675449858,-2959.53,0.00021917,2]
[329792129,1718675449874,-500.0,0.00021917,2]
[329792130,1718675449883,-500.0,0.00021917,2]
[329792131,1718675449899,-534.43770614,0.00021917,2]
[329792132,1718675449908,-603.43,0.00021917,2]
[329792133,1718675449918,-472.73039606,0.00021917,2]
[329792134,1718675449927,-515.65647533,0.00021917,2]
[329792135,1718675449938,-2231.68,0.00021917,2]
[329792136,1718675449947,-500.9179021,0.00021917,2]
[329792137,1718675449957,-500.0,0.00021917,2]
[329792138,1718675449966,-522.02,0.00021917,2]
[329792139,1718675449975,-722.82,0.00021917,2]
[329792140,1718675449986,-3870.15,0.00021917,2]
[329792141,1718675449995,-500.0,0.00021917,2]
[329792142,1718675450005,-585.07,0.00021917,2]
[329792143,1718675450015,-935.69,0.00021917,2]
[329792144,1718675450025,-6052.29,0.00021917,2]
[329792145,1718675450035,-501.82327697,0.00021917,2]
[329792146,1718675450045,-500.0,0.00021917,2]
[329792147,1718675450056,-504.65103677,0.00021917,2]
[329792148,1718675450066,-500.0,0.00021917,2]
[329792149,1718675450076,-500.0,0.00021917,2]
[329792150,1718675450086,-512.30635259,0.00021917,2]
[329792151,1718675450095,-500.0,0.00021917,2]
[329792152,1718675450105,-2254.9,0.00021917,2]
[329792153,1718675450121,-500.0,0.00021917,2]
[329792154,1718675450131,-500.0,0.00021917,2]
[329792155,1718675450140,-500.0,0.00021917,2]
[329792156,1718675450149,-1087.14,0.00021917,2]
[329792157,1718675450161,-508.87622905,0.00021917,2]
[329792158,1718675450171,-1723.05,0.00021917,2]
[329792159,1718675450181,-500.0,0.00021917,2]
[329792160,1718675450191,-1916.99,0.00021917,2]
[329792161,1718675450201,-8441.75,0.00021917,2]
[329792162,1718675450211,-504.95273919,0.00021917,2]
[329792163,1718675450220,-596.63,0.00021917,2]
[329792164,1718675450230,-500.0,0.00021917,2]
[329792165,1718675450241,-657.85,0.00021917,2]
[329792166,1718675450251,-502.47813475,0.00021917,2]
[329792167,1718675450260,-4523.56,0.00021917,2]
[329792168,1718675450270,-638.04011243,0.00021917,2]
[329792169,1718675450279,-573.05,0.00021917,2]
[329792170,1718675450289,-603.5339431,0.00021917,2]
[329792171,1718675450298,-2933.52,0.00021917,2]
[329792172,1718675450307,-1666.83,0.00021917,2]
[329792173,1718675450317,-500.0,0.00021917,2]
[329792174,1718675450326,-500.0,0.00021917,2]
[329792175,1718675450335,-500.0,0.00021917,2]
[329792176,1718675450345,-500.0,0.00021917,2]
[329792177,1718675450354,-500.0,0.00021917,2]
[329792178,1718675450367,-3354.44,0.00021917,2]
[329792179,1718675450376,-5883.63,0.00021917,2]
[329792180,1718675450386,-500.0,0.00021917,2]
[329792181,1718675450398,-500.0,0.00021917,2]
[329792182,1718675450408,-500.0,0.00021917,2]
[329792183,1718675450418,-1552.15,0.00021917,2]
[329792184,1718675450428,-500.0,0.00021917,2]
[329792185,1718675450438,-881.41,0.00021917,2]
[329792186,1718675450448,-1286.34,0.00021917,2]
[329792187,1718675450457,-500.87567593,0.00021917,2]
[329792188,1718675450467,-500.0,0.00021917,2]
[329792189,1718675450477,-500.0,0.00021917,2]
[329792190,1718675450487,-500.0,0.00021917,2]
[329792191,1718675450497,-517.93,0.00021917,2]
[329792192,1718675450507,-6270.7,0.00021917,2]
[329792193,1718675450516,-1664.12,0.00021917,2]
[329792194,1718675450526,-501.19321765,0.00021917,2]
[329792195,1718675450536,-2261.42,0.00021917,2]
[329792196,1718675450546,-19573.46,0.00021917,2]
[329792197,1718675450556,-503.46857585,0.00021917,2]
[329792198,1718675450565,-502.48557725,0.00021917,2]
[329792199,1718675450575,-4665.65,0.00021917,2]
[329792200,1718675450585,-500.0,0.00021917,2]
[329792201,1718675450595,-500.0,0.00021917,2]
[329792202,1718675450605,-500.0,0.00021917,2]
[329792203,1718675450620,-1444.65,0.00021917,2]
[329792204,1718675450633,-879.41,0.00021917,2]
[329792205,1718675450646,-1651.14,0.00021917,2]
[329792206,1718675450657,-4976.64,0.00021917,2]
[329792207,1718675450667,-1574.13,0.00021917,2]
[329792208,1718675450678,-500.55582763,0.00021917,2]
[329792209,1718675450689,-2885.36,0.00021917,2]
[329792210,1718675450701,-500.0,0.00021917,2]
[329792211,1718675450711,-500.0,0.00021917,2]
[329792212,1718675450722,-9953.13,0.00021917,2]
[329792213,1718675450732,-30435.89,0.00021917,2]
[329792214,1718675450742,-500.0,0.00021917,2]
[329792215,1718675450753,-500.0,0.00021917,2]
[329792216,1718675450762,-606.96,0.00021917,2]
[329792217,1718675450772,-500.0,0.00021917,2]
[329792218,1718675450782,-500.0,0.00021917,2]
[329792219,1718675450791,-2818.95,0.00021917,2]
[329792220,1718675450802,-535.36,0.00021917,2]
[329792221,1718675450812,-1818.9,0.00021917,2]
[329792222,1718675450822,-342.63,0.00021918,2]
[329792223,1718675450832,-167.42,0.0002192,2]
[329792224,1718675450842,-167.42,0.0002192,2]
[329792225,1718675450857,-167.42,0.0002192,2]
[329792226,1718675450872,-167.42,0.0002192,2]
[329792227,1718675450882,-152.0,0.00021967,3]
[329792228,1718675450895,-416.39,0.00022017,2]
[329792229,1718675450905,-498.61080041,0.00022066,2]
[329792230,1718675450915,-151.0,0.00022115,2]
[329792231,1718675450924,-179.3492615,0.00022183,2]
[329792232,1718675450937,-507.3744476,0.00022183,2]
[329792233,1718675450947,-500.0,0.0002219,2]
[329792234,1718675450956,-355.94380988,0.0002219,2]
[329792235,1718675450967,-500.0,0.0002219,2]
[329792236,1718675450977,-500.0,0.0002219,2]
[329792237,1718675450987,-500.0,0.0002219,2]
[329792238,1718675450996,-500.0,0.0002219,2]
[329792239,1718675451007,-500.0,0.0002219,2]
[329792240,1718675451018,-500.0,0.0002219,2]
[329792242,1718675451028,-500.0,0.0002219,2]
[329792244,1718675451041,-500.0,0.0002219,2]
[329792246,1718675451051,-175.13414763,0.0002219,2]
[329792247,1718675451061,-274.48844538,0.0002219,2]
[329792249,1718675451071,-500.0,0.0002219,2]
[329792251,1718675451081,-500.0,0.0002219,2]
[329792252,1718675451091,-500.0,0.0002219,2]
[329792253,1718675451101,-500.0,0.0002219,2]
[329792254,1718675451113,-500.0,0.0002219,2]
[329792255,1718675451124,-500.0,0.0002219,2]
[329792256,1718675451134,-446.16216842,0.0002219,2]
[329792257,1718675451143,-500.0,0.0002219,2]
[329792258,1718675451154,-450.43263172,0.0002219,2]
[329792259,1718675451165,-165.71410008,0.0002219,2]
[329792260,1718675451175,-269.42350791,0.0002219,2]
[329792261,1718675451185,-380.82705237,0.0002219,2]
[329792262,1718675451195,-500.58375097,0.00022191,3]
[329792263,1718675451204,-501.27333199,0.00022191,3]
[329792264,1718675451214,-501.75256175,0.00022191,3]
[329792265,1718675451225,-500.0,0.00022191,3]
[329792266,1718675451235,-500.0,0.00022191,3]
[329792267,1718675451246,-24.91403448,0.00022191,3]
[329792268,1718675451690,-475.08596552,0.00022191,3]
[329792271,1718675451701,-500.0,0.00022191,3]
[329792274,1718675451712,-500.0,0.00022191,3]
[329792276,1718675451722,-500.0,0.00022191,3]
[329792278,1718675451733,-500.0,0.00022191,3]
[329792280,1718675451743,-500.0,0.00022191,3]
[329792282,1718675451753,-500.0,0.00022191,3]
[329792284,1718675451763,-500.0,0.00022191,3]
[329792286,1718675451773,-500.0,0.00022191,3]
[329792287,1718675451783,-500.0,0.00022191,3]
[329792289,1718675451794,-331.43557877,0.00022191,3]
[329792291,1718675451804,-500.0,0.00022191,3]
[329792293,1718675451814,-500.0,0.00022191,3]
[329792295,1718675451824,-500.0,0.00022191,3]
[329792296,1718675451834,-500.0,0.00022191,3]
[329792297,1718675451844,-500.0,0.00022191,3]
[329792298,1718675451858,-500.0,0.00022191,3]
[329792299,1718675451873,-500.0,0.00022191,3]
[329792300,1718675451883,-518.40564626,0.00022191,3]
[329792301,1718675451897,-500.0,0.00022191,3]
[329792302,1718675451907,-500.0,0.00022191,3]
[329792303,1718675451917,-500.0,0.00022191,3]
[329792304,1718675451927,-614.97,0.00022191,3]
[329792305,1718675451938,-500.0,0.00022191,3]
[329792306,1718675451948,-500.0,0.00022191,3]
[329792307,1718675451958,-500.0,0.00022191,3]
[329792308,1718675451968,-500.0,0.00022191,3]
[329792309,1718675451978,-500.0,0.00022191,3]
[329792310,1718675451989,-1150.17,0.00022191,3]
[329792311,1718675451999,-500.0,0.00022191,3]
[329792312,1718675452011,-500.0,0.00022191,3]
[329792313,1718675452022,-500.0,0.00022191,3]
[329792314,1718675452032,-1207.2,0.00022191,3]
[329792315,1718675452042,-901.69,0.00022191,3]
[329792316,1718675452052,-500.0,0.00022191,3]
[329792317,1718675452063,-500.0,0.00022191,3]
[329792318,1718675452073,-500.0,0.00022191,3]
[329792319,1718675452083,-500.0,0.00022191,3]
[329792320,1718675452093,-500.0,0.00022191,3]
[329792321,1718675452104,-517.3286752,0.00022191,2]
[329792322,1718675452120,-500.0,0.00022191,3]
[329792323,1718675452130,-677.29,0.00022191,3]
[329792324,1718675452141,-1069.34,0.00022191,3]
[329792325,1718675452151,-500.0,0.00022191,3]
[329792326,1718675452161,-500.0,0.00022191,3]
[329792327,1718675452171,-500.0,0.00022191,3]
[329792328,1718675452181,-500.0,0.00022191,3]
[329792329,1718675452192,-500.0,0.00022191,3]
[329792330,1718675452202,-500.0,0.00022191,3]
[329792331,1718675452436,-575.54,0.00022191,3]
[329792332,1718675452489,-500.0,0.00022191,3]
[329792333,1718675452517,-500.0,0.00022191,3]
[329792334,1718675452528,-500.0,0.00022191,3]
[329792335,1718675452538,-500.0,0.00022191,3]
[329792336,1718675452548,-500.0,0.00022191,3]
[329792337,1718675452559,-500.0,0.00022191,3]
[329792338,1718675452569,-500.0,0.00022191,3]
[329792339,1718675452579,-552.37562451,0.00022191,3]
[329792340,1718675452588,-500.0,0.00022191,3]
[329792341,1718675452598,-500.0,0.00022191,3]
[329792342,1718675452609,-908.31,0.00022191,3]
[329792343,1718675452624,-500.0,0.00022191,3]
[329792344,1718675452634,-500.0,0.00022191,3]
[329792345,1718675452644,-500.0,0.00022191,3]
[329792346,1718675452653,-500.0,0.00022191,3]
[329792347,1718675452664,-500.0,0.00022191,3]
[329792348,1718675452674,-732.22,0.00022191,3]
[329792349,1718675452684,-500.0,0.00022191,3]
[329792350,1718675452694,-500.0,0.00022191,3]
[329792351,1718675452704,-500.0,0.00022191,3]
[329792352,1718675452714,-734.12,0.00022191,3]
[329792353,1718675452724,-500.0,0.00022191,3]
[329792354,1718675452734,-500.0,0.00022191,3]
[329792355,1718675452744,-500.0,0.00022191,3]
[329792356,1718675452755,-500.0,0.00022191,3]
[329792357,1718675452766,-869.06,0.00022191,3]
[329792358,1718675452776,-500.0,0.00022191,3]
[329792359,1718675452787,-500.0,0.00022191,3]
[329792360,1718675452797,-500.0,0.00022191,3]
[329792361,1718675452807,-500.0,0.00022191,3]
[329792362,1718675452818,-527.06,0.00022191,3]
[329792363,1718675452829,-892.13453764,0.00022191,3]
[329792364,1718675453084,-44.49546236,0.00022191,3]
[329792365,1718675453094,-500.0,0.00022191,3]
[329792366,1718675453104,-287.05845132,0.00022191,2]
[329792367,1718675453120,-500.0,0.00022191,3]
[329792368,1718675453130,-500.0,0.00022191,3]
[329792369,1718675453140,-859.95,0.00022191,3]
[329792370,1718675453150,-500.0,0.00022191,3]
[329792371,1718675453159,-500.0,0.00022191,3]
[329792372,1718675453171,-500.0,0.00022191,3]
[329792373,1718675453182,-500.0,0.00022191,3]
[329792374,1718675453192,-665.43,0.00022191,3]
[329792375,1718675453202,-500.0,0.00022191,3]
[329792376,1718675453212,-672.94,0.00022191,3]
[329792377,1718675453222,-500.0,0.00022191,3]
[329792378,1718675453232,-500.0,0.00022191,3]
[329792379,1718675453242,-610.3,0.00022191,3]
[329792380,1718675453253,-500.0,0.00022191,3]
[329792381,1718675453263,-500.0,0.00022191,3]
[329792382,1718675453273,-500.0,0.00022191,3]
[329792383,1718675453284,-1504.51,0.00022191,3]
[329792384,1718675453294,-500.0,0.00022191,3]
[329792385,1718675453304,-829.7,0.00022191,3]
[329792386,1718675453314,-500.0,0.00022191,3]
[329792387,1718675453323,-500.0,0.00022191,3]
[329792388,1718675453333,-500.0,0.00022191,3]
[329792389,1718675453343,-500.0,0.00022191,3]
[329792390,1718675453353,-500.0,0.00022191,3]
[329792391,1718675453368,-771.1,0.00022191,3]
[329792392,1718675453378,-500.0,0.00022191,3]
[329792393,1718675453387,-500.0,0.00022191,3]
[329792394,1718675453398,-500.0,0.00022191,3]
[329792395,1718675453408,-500.0,0.00022191,3]
[329792396,1718675453418,-500.0,0.00022191,3]
[329792397,1718675453428,-1260.32,0.00022191,3]
[329792398,1718675453438,-737.92,0.00022191,3]
[329792399,1718675453448,-500.0,0.00022191,3]
[329792400,1718675453457,-500.0,0.00022191,3]
[329792401,1718675453467,-611.17,0.00022191,3]
[329792402,1718675453478,-500.0,0.00022191,3]
[329792403,1718675453487,-500.0,0.00022191,3]
[329792404,1718675453497,-1255.95,0.00022191,3]
[329792405,1718675453508,-640.53,0.00022191,3]
[329792406,1718675453518,-500.0,0.00022191,3]
[329792407,1718675453528,-500.0,0.00022191,3]
[329792408,1718675453538,-735.11,0.00022191,3]
[329792409,1718675453548,-500.0,0.00022191,3]
[329792410,1718675453558,-500.0,0.00022191,3]
[329792411,1718675453568,-618.37,0.00022191,3]
[329792412,1718675453577,-500.0,0.00022191,3]
[329792413,1718675453587,-628.95541468,0.00022191,3]
[329792414,1718675453598,-502.39241376,0.00022191,3]
[329792415,1718675453607,-603.85827471,0.00022191,3]
[329792416,1718675453623,-654.93,0.00022191,3]
[329792417,1718675453633,-502.94993418,0.00022191,3]
[329792418,1718675453643,-500.0,0.00022191,3]
[329792419,1718675453654,-500.0,0.00022191,3]
[329792420,1718675453664,-500.0,0.00022191,3]
[329792421,1718675453674,-809.01,0.00022191,3]
[329792422,1718675453685,-500.0,0.00022191,3]
[329792423,1718675453695,-500.0,0.00022191,3]
[329792424,1718675453705,-609.25,0.00022191,3]
[329792425,1718675453715,-579.81,0.00022191,3]
[329792426,1718675453726,-500.0,0.00022191,3]
[329792427,1718675453737,-1209.79,0.00022191,3]
[329792428,1718675453747,-500.0,0.00022191,3]
[329792429,1718675453757,-659.48,0.00022191,3]
[329792430,1718675453767,-500.0,0.00022191,3]
[329792431,1718675453777,-571.14,0.00022191,3]
[329792432,1718675453789,-382.75060823,0.00022191,3]
[329792433,1718675453805,-809.43,0.00022191,3]
[329792434,1718675453815,-500.0,0.00022191,3]
[329792435,1718675453826,-1061.15,0.00022191,3]
[329792436,1718675453837,-500.0,0.00022191,3]
[329792437,1718675453848,-806.56,0.00022191,3]
[329792438,1718675453864,-500.0,0.00022191,3]
[329792439,1718675453876,-564.23691712,0.00022191,3]
[329792440,1718675453885,-500.0,0.00022191,3]
[329792441,1718675453900,-500.0,0.00022191,3]
[329792442,1718675453910,-500.0,0.00022191,3]
[329792443,1718675453920,-789.21,0.00022191,3]
[329792444,1718675453931,-500.0,0.00022191,3]
[329792445,1718675453942,-500.0,0.00022191,3]
[329792446,1718675453952,-969.04,0.00022191,3]
[329792447,1718675453962,-697.87,0.00022191,3]
[329792448,1718675453973,-500.0,0.00022191,3]
[329792449,1718675453983,-1018.72,0.00022191,3]
[329792450,1718675453992,-500.0,0.00022191,3]
[329792451,1718675454002,-902.51,0.00022191,3]
[329792452,1718675454013,-633.95065709,0.00022191,3]
[329792453,1718675454023,-511.09499978,0.00022191,3]
[329792454,1718675454034,-570.2,0.00022191,3]
[329792455,1718675454045,-635.94,0.00022191,3]
[329792456,1718675454055,-417.84058691,0.00022191,3]
[329792457,1718675454066,-500.0,0.00022191,3]
[329792458,1718675454076,-500.0,0.00022191,3]
[329792459,1718675454087,-423.12196384,0.00022191,3]
[329792460,1718675454098,-500.0,0.00022191,3]
[329792461,1718675454109,-582.94,0.00022191,3]
[329792462,1718675454125,-500.0,0.00022191,3]
[329792463,1718675454136,-500.0,0.00022191,3]
[329792464,1718675454147,-633.54,0.00022191,3]
[329792465,1718675454159,-503.40757561,0.00022191,3]
[329792466,1718675454170,-500.0,0.00022191,3]
[329792467,1718675454182,-591.77,0.00022191,3]
[329792468,1718675454193,-503.0406025,0.00022191,3]
[329792469,1718675454203,-614.44,0.00022191,3]
[329792470,1718675454213,-500.0,0.00022191,3]
[329792471,1718675454223,-500.0,0.00022191,3]
[329792472,1718675454233,-506.34138761,0.00022191,3]
[329792473,1718675454243,-500.0,0.00022191,3]
[329792474,1718675454254,-500.0,0.00022191,3]
[329792475,1718675454264,-500.0,0.00022191,3]
[329792476,1718675454274,-513.64,0.00022191,3]
[329792477,1718675454285,-500.0,0.00022191,3]
[329792478,1718675454296,-500.0,0.00022191,3]
[329792479,1718675454306,-500.0,0.00022191,3]
[329792480,1718675454317,-500.0,0.00022191,3]
[329792481,1718675454327,-500.0,0.00022191,3]
[329792482,1718675454337,-1037.29,0.00022191,3]
[329792483,1718675454347,-564.23647515,0.00022191,3]
[329792484,1718675454357,-500.0,0.00022191,3]
[329792485,1718675454372,-500.0,0.00022191,3]